[Event "FIDE WCCC Girls-10 2024"]
[Site "Montesilvano"]
[Date "2024.11.20"]
[Round "6.20"]
[White "Sobirova, Mumtozbegim"]
[Black "Malcheva, Niya"]
[Result "0-1"]
[Annotator "NA RC"]
[ECO "B13"]
[WhiteElo "1476"]
[BlackElo "1620"]
[PlyCount "78"]
[EventDate "2024.11.18"]
[EventType "swiss"]
[EventCountry "ITA"]
[SourceTitle "playchess.com"]
[Source "ChessBase"]
[SourceQuality "1"]
[TimeControl "5400+30"]

1. e4 {[%emt 0:00:06]} c6 {[%emt 0:00:06]} 2. d4 {[%emt 0:01:45]} d5 {[%emt 0:00:04]} 3. exd5 {[%emt 0:00:18]} cxd5 {[%emt 0:00:09]} 4. Bd3 {[%emt 0:00:33]} Nc6 {[%emt 0:00:22]} 5. c3 {[%emt 0:00:48]} Nf6 {[%emt 0:00:54]} 6. Nf3 {[%emt 0:00:37]} Bg4 {[%emt 0:01:13]} 7. Nbd2 {[%emt 0:00:27]} Rc8 {[%emt 0:00:52]} 8. O-O {[%emt 0:00:55]} e6 {[%emt 0:00:35]} 9. Re1 {[%emt 0:00:26]} Be7 {[%emt 0:00:09]} 10. Nf1 {[%emt 0:00:35]} O-O {[%emt 0:00:49]} 11. Ng3 {[%emt 0:00:40]} Bd6 {[%emt 0:00:13]} 12. h3 {[%emt 0:00:38]} Bxg3 {[%emt 0:01:42]} 13. fxg3 {[%emt 0:00:54]} Bh5 {[%emt 0:00:22]} 14. g4 {[%emt 0:00:37]} Bg6 {[%emt 0:00:04]} 15. Bxg6 {[%emt 0:00:25]} hxg6 {[%emt 0:00:02]} 16. Bg5 {[%emt 0:00:42]} Qd6 {[%emt 0:05:45]} 17. Ne5 {[%emt 0:03:38]} Ne4 {[%emt 0:03:46]} 18. Bf4 {[%emt 0:01:07]} Nxe5 {[%emt 0:01:22]} 19. dxe5 {[%emt 0:02:54]} Qb6+ {[%emt 0:02:43]} 20. Be3 {[%emt 0:03:23]} Qxb2 {[%emt 0:03:39]} 21. Bd4 {[%emt 0:13:08]} Nxc3 {[%emt 0:10:59]} 22. Qd3 {[%emt 0:07:14]} Qb5 {[%emt 0:04:07]} 23. Qe3 {[%emt 0:01:01]} Ne4 {[%emt 0:02:25]} 24. Rec1 {[%emt 0:07:27]} b6 {[%emt 0:03:58]} 25. Rxc8 {[%emt 0:03:23]} Rxc8 {[%emt 0:00:08]} 26. Rc1 {[%emt 0:03:58]} Rc4 {[%emt 0:01:26]} 27. Qe1 {[%emt 0:01:19]} Qc6 {[%emt 0:02:27]} 28. Be3 {[%emt 0:02:16]} Rxc1 {[%emt 0:00:15]} 29. Bxc1 {[%emt 0:00:51]} Qc3 {[%emt 0:00:09]} 30. Qf1 {[%emt 0:02:22]} Ng3 {[%emt 0:00:20]} 31. Qf2 {[%emt 0:02:15]} Qxc1+ {[%emt 0:00:05]} 32. Kh2 {[%emt 0:00:14]} Ne4 {[%emt 0:00:10]} 33. Qh4 {[%emt 0:00:53]} Qf4+ {[%emt 0:00:18]} 34. Kg1 {[%emt 0:39:41]} Qe3+ {[%emt 0:00:54]} 35. Kh2 {[%emt 0:00:00]} g5 {[%emt 0:00:03]} 36. Qh5 {[%emt 0:00:00]} Ng3 {[%emt 0:00:05]} 37. Qxg5 {[%emt 0:00:00]} Nf1+ {[%emt 0:00:13]} 38. Kh1 {[%emt 0:00:00]} Qxg5 {[%emt 0:00:02]} 39. Kg1 {[%emt 0:00:00]} Nd2 {[%emt 0:00:06]} 0-1

[Event "FIDE WCCC Girls-10 2024"]
[Site "Montesilvano"]
[Date "2024.11.20"]
[Round "6.21"]
[White "Macchia-Shahar, Yali"]
[Black "Shtepa, Liubov"]
[Result "0-1"]
[Annotator "NA RC"]
[ECO "C76"]
[WhiteElo "1564"]
[BlackElo "1615"]
[PlyCount "76"]
[EventDate "2024.11.18"]
[EventType "swiss"]
[EventCountry "ITA"]
[SourceTitle "playchess.com"]
[Source "ChessBase"]
[SourceQuality "1"]
[TimeControl "5400+30"]

1. e4 {[%emt 0:00:06]} e5 {[%emt 0:00:05]} 2. Nf3 {[%emt 0:00:13]} Nc6 {[%emt 0:00:03]} 3. Bb5 {[%emt 0:00:24]} a6 {[%emt 0:00:06]} 4. Ba4 {[%emt 0:00:20]} d6 {[%emt 0:00:13]} 5. c3 {[%emt 0:00:33]} Bd7 {[%emt 0:00:23]} 6. O-O {[%emt 0:00:29]} g6 {[%emt 0:00:05]} 7. d4 {[%emt 0:01:02]} Bg7 {[%emt 0:00:10]} 8. d5 {[%emt 0:02:30]} Nce7 {[%emt 0:00:16]} 9. Bc2 {[%emt 0:02:38]} Nf6 {[%emt 0:00:15]} 10. Re1 {[%emt 0:01:06]} O-O {[%emt 0:00:25]} 11. Nbd2 {[%emt 0:01:27]} Ne8 {[%emt 0:00:26]} 12. Nf1 {[%emt 0:01:05]} f5 {[%emt 0:00:14]} 13. exf5 {[%emt 0:08:23]} Nxf5 {[%emt 0:00:13]} 14. Ne3 {[%emt 0:02:56]} Nxe3 {[%emt 0:05:41]} 15. Rxe3 {[%emt 0:04:22]} Bh6 {[%emt 0:06:35]} 16. Re4 {[%emt 0:03:05]} Bxc1 {[%emt 0:04:46]} 17. Qxc1 {[%emt 0:01:16]} Nf6 {[%emt 0:03:55]} 18. Rh4 {[%emt 0:02:05]} Ng4 {[%emt 0:15:50]} 19. Ng5 {[%emt 0:18:28]} h6 {[%emt 0:10:24]} 20. Nf3 {[%emt 0:21:56]} g5 {[%emt 0:05:11]} 21. Rh3 {[%emt 0:08:25]} Qf6 {[%emt 0:12:33]} 22. Rg3 {[%emt 0:04:17]} Rae8 {[%emt 0:01:41]} 23. h3 {[%emt 0:02:44]} Nxf2 {[%emt 0:02:48]} 24. Qf1 {[%emt 0:01:45]} e4 {[%emt 0:04:07]} 25. Qxf2 {[%emt 0:02:04]} exf3 {[%emt 0:00:22]} 26. h4 {[%emt 0:00:41]} Re2 {[%emt 0:02:52]} 27. hxg5 {[%emt 0:02:35]} hxg5 {[%emt 0:01:41]} 28. Qxf3 {[%emt 0:01:43]} Qxf3 {[%emt 0:02:11]} 29. Rxg5+ {[%emt 0:00:27]} Kh8 {[%emt 0:00:55]} 30. gxf3 {[%emt 0:00:55]} Rxc2 {[%emt 0:00:38]} 31. Re1 {[%emt 0:00:49]} Rg8 {[%emt 0:01:44]} 32. Rxg8+ {[%emt 0:00:14]} Kxg8 {[%emt 0:00:06]} 33. Re7 {[%emt 0:00:17]} Bb5 {[%emt 0:00:40]} 34. Rxc7 {[%emt 0:00:35]} Rxb2 {[%emt 0:00:13]} 35. Rxb7 {[%emt 0:00:11]} Rxa2 {[%emt 0:00:12]} 36. Rb8+ {[%emt 0:00:15]} Kf7 {[%emt 0:00:17]} 37. Rb7+ {[%emt 0:00:16]} Kf6 {[%emt 0:00:12]} 38. Rc7 {[%emt 0:01:18]} Rc2 {[%emt 0:01:04]} 0-1

[Event "FIDE WCCC Girls-10 2024"]
[Site "Montesilvano"]
[Date "2024.11.20"]
[Round "6.22"]
[White "Macakova, Bianka"]
[Black "Bjerregaard Hagen, Frida"]
[Result "0-1"]
[Annotator "NA RC"]
[ECO "C01"]
[WhiteElo "1610"]
[BlackElo "1815"]
[PlyCount "129"]
[EventDate "2024.11.18"]
[EventType "swiss"]
[EventCountry "ITA"]
[SourceTitle "playchess.com"]
[Source "ChessBase"]
[SourceQuality "1"]
[TimeControl "5400+30"]

1. e4 {[%emt 0:00:03]} e6 {[%emt 0:00:06]} 2. d4 {[%emt 0:00:24]} d5 {[%emt 0:00:15]} 3. exd5 {[%emt 0:00:33]} exd5 {[%emt 0:00:05]} 4. Nc3 {[%emt 0:04:32]} Nf6 {[%emt 0:00:35]} 5. Bg5 {[%emt 0:05:38]} Be7 {[%emt 0:06:50]} 6. Bd3 {[%emt 0:12:54]} Nc6 {[%emt 0:06:48]} 7. Nge2 {[%emt 0:05:41]} Nb4 {[%emt 0:01:34]} 8. Qd2 {[%emt 0:09:45] C01: French: Exchange Variation.} Nxd3+ {[%emt 0:01:38]} 9. Qxd3 {[%emt 0:02:09]} Bg4 {[%emt 0:03:32]} 10. O-O-O {[%emt 0:09:04]} Qd7 {[%emt 0:03:54]} 11. f3 {[%emt 0:10:16]} Bf5 {[%emt 0:02:38]} 12. Qd2 {[%emt 0:03:55]} O-O-O {[%emt 0:03:25]} 13. Ng3 {[%emt 0:03:55]} Bg6 {[%emt 0:01:28]} 14. Rhe1 {[%emt 0:05:09]} h6 {[%emt 0:06:38]} 15. Bf4 {[%emt 0:03:53]} Rhe8 {[%emt 0:02:22]} 16. Re2 {[%emt 0:07:25]} Bd6 {[%emt 0:04:00]} 17. Bxd6 {[%emt 0:02:51]} Qxd6 {[%emt 0:01:28]} 18. Rde1 {[%emt 0:02:52]} Qd7 {[%emt 0:04:38]} 19. Re5 {[%emt 0:02:21]} Rxe5 {[%emt 0:04:45]} 20. Rxe5 {[%emt 0:00:43]} Re8 {[%emt 0:01:12]} 21. Qe2 {[%emt 0:05:17]} Rxe5 {[%emt 0:02:25]} 22. Qxe5 {[%emt 0:01:13]} Qe6 {[%emt 0:01:50]} 23. Qxe6+ {[%emt 0:00:30]} fxe6 {[%emt 0:00:06]} 24. Kd2 {[%emt 0:00:37]} Kd7 {[%emt 0:00:19]} 25. Nge2 {[%emt 0:00:40]} c6 {[%emt 0:00:30]} 26. Nf4 {[%emt 0:00:28]} Bf7 {[%emt 0:00:13]} 27. Nd3 {[%emt 0:00:32]} Kd6 {[%emt 0:01:16]} 28. Ne5 {[%emt 0:00:29]} Be8 {[%emt 0:00:18]} 29. Nd3 {[%emt 0:00:32]} g5 {[%emt 0:01:05]} 30. Ke3 {[%emt 0:00:33]} g4 {[%emt 0:02:23]} 31. f4 {[%emt 0:00:28]} h5 {[%emt 0:00:43]} 32. g3 {[%emt 0:00:31]} Ng8 {[%emt 0:01:06]} 33. b4 {[%emt 0:00:32]} Nh6 {[%emt 0:01:11]} 34. Nc5 {[%emt 0:00:20]} Nf5+ {[%emt 0:00:34]} 35. Kd3 {[%emt 0:00:22]} b6 {[%emt 0:00:58]} 36. Nb3 {[%emt 0:00:24]} Bg6 {[%emt 0:01:01]} 37. Ke2 {[%emt 0:00:55]} h4 {[%emt 0:02:21]} 38. gxh4 {[%emt 0:00:30]} Nxh4 {[%emt 0:00:35]} 39. Kf2 {[%emt 0:00:27]} Nf5 {[%emt 0:03:45]} 40. Ne2 {[%emt 0:00:33]} Ke7 {[%emt 0:02:08]} 41. c3 {[%emt 0:00:28]} Kf6 {[%emt 0:01:09]} 42. Nec1 {[%emt 0:00:32]} Nd6 {[%emt 0:02:28]} 43. Ne2 {[%emt 0:00:31]} Bd3 {[%emt 0:02:42]} 44. Ke3 {[%emt 0:00:28]} Bxe2 {[%emt 0:00:39]} 45. Kxe2 {[%emt 0:00:07]} Ne4 {[%emt 0:00:23]} 46. Kf1 {[%emt 0:00:50]} Kf5 {[%emt 0:00:32]} 47. c4 {[%emt 0:00:35]} dxc4 {[%emt 0:01:57]} 48. Nc1 {[%emt 0:00:22]} Kxf4 {[%emt 0:22:02]} 49. a4 {[%emt 0:00:37]} Nc3 {[%emt 0:00:00]} 50. a5 {[%emt 0:00:26]} Kf3 {[%emt 0:00:00]} 51. axb6 {[%emt 0:00:32]} axb6 {[%emt 0:00:00]} 52. Ke1 {[%emt 0:00:31]} Nd5 {[%emt 0:00:00]} 53. Na2 {[%emt 0:00:27]} Kg2 {[%emt 0:00:00]} 54. Nc1 {[%emt 0:00:17]} Nxb4 {[%emt 0:00:00]} 55. Kd2 {[%emt 0:00:24]} Nd5 {[%emt 0:00:00]} 56. Ne2 {[%emt 0:00:25]} c3+ {[%emt 0:00:00]} 57. Kd1 {[%emt 0:00:18]} Kxh2 {[%emt 0:00:00]} 58. Ke1 {[%emt 0:00:13]} Kg2 {[%emt 0:00:00]} 59. Nc1 {[%emt 0:00:51]} Kf3 {[%emt 0:00:00]} 60. Kf1 {[%emt 0:00:20]} Ke3 {[%emt 0:00:00]} 61. Ne2 {[%emt 0:00:31]} c2 {[%emt 0:00:00]} 62. Ke1 {[%emt 0:00:21]} g3 {[%emt 0:00:00]} 63. Kf1 {[%emt 0:00:28]} Nc3 {[%emt 0:00:00]} 64. Nc1 {[%emt 0:00:23]} Kd2 {[%emt 0:00:00]} 65. Nb3+ {[%emt 0:00:00]} 0-1

[Event "FIDE WCCC Girls-10 2024"]
[Site "Montesilvano"]
[Date "2024.11.20"]
[Round "6.23"]
[White "Tykalova, Barbora"]
[Black "Rzadkowska, Lila"]
[Result "0-1"]
[Annotator "NA RC"]
[ECO "B40"]
[WhiteElo "1596"]
[BlackElo "1765"]
[PlyCount "80"]
[EventDate "2024.11.18"]
[EventType "swiss"]
[EventCountry "ITA"]
[SourceTitle "playchess.com"]
[Source "ChessBase"]
[SourceQuality "1"]
[TimeControl "5400+30"]

1. e4 {[%emt 0:00:03]} c5 {[%emt 0:00:10]} 2. Nf3 {[%emt 0:00:49]} e6 {[%emt 0:00:15]} 3. b3 {[%emt 0:00:36]} Nc6 {[%emt 0:00:21]} 4. Bb2 {[%emt 0:00:55]} a6 {[%emt 0:00:11]} 5. g3 {[%emt 0:01:27]} d5 {[%emt 0:00:17]} 6. exd5 {[%emt 0:04:00]} exd5 {[%emt 0:00:13]} 7. Qe2+ {[%emt 0:01:21]} Be6 {[%emt 0:01:34]} 8. Bg2 {[%emt 0:01:35]} d4 {[%emt 0:02:51]} 9. O-O {[%emt 0:11:40]} Be7 {[%emt 0:01:25]} 10. Ne5 {[%emt 0:00:30]} Rc8 {[%emt 0:04:24]} 11. Nxc6 {[%emt 0:02:11]} bxc6 {[%emt 0:00:23]} 12. Qxa6 {[%emt 0:02:41]} Bd5 {[%emt 0:01:04]} 13. Bh3 {[%emt 0:02:31]} Ra8 {[%emt 0:00:39]} 14. Qe2 {[%emt 0:02:16]} Nf6 {[%emt 0:01:33]} 15. Re1 {[%emt 0:07:50]} h5 {[%emt 0:02:04]} 16. Ba3 {[%emt 0:04:06]} Qd6 {[%emt 0:05:33]} 17. Qe5 {[%emt 0:08:40]} Qxe5 {[%emt 0:04:31]} 18. Rxe5 {[%emt 0:00:14]} Kd8 {[%emt 0:00:52]} 19. Bg2 {[%emt 0:04:39]} d3 {[%emt 0:08:13]} 20. cxd3 {[%emt 0:05:38]} Ng4 {[%emt 0:00:42]} 21. Rxe7 {[%emt 0:08:38]} Kxe7 {[%emt 0:00:41]} 22. Bxd5 {[%emt 0:01:23]} cxd5 {[%emt 0:00:07]} 23. Bxc5+ {[%emt 0:00:11]} Kd7 {[%emt 0:01:32]} 24. Nc3 {[%emt 0:03:10]} Kc6 {[%emt 0:03:53]} 25. Bd4 {[%emt 0:01:46]} f6 {[%emt 0:01:31]} 26. Rc1 {[%emt 0:01:43]} Rhc8 {[%emt 0:02:33]} 27. a4 {[%emt 0:05:01]} Ne5 {[%emt 0:01:50]} 28. Bxe5 {[%emt 0:05:48]} fxe5 {[%emt 0:00:28]} 29. Re1 {[%emt 0:00:32]} Re8 {[%emt 0:03:22]} 30. Nb5 {[%emt 0:01:42]} Kb6 {[%emt 0:02:17]} 31. Nd6 {[%emt 0:03:09]} Re6 {[%emt 0:00:25]} 32. Nf5 {[%emt 0:01:17]} g6 {[%emt 0:01:05]} 33. Nd4 {[%emt 0:01:20]} Ree8 {[%emt 0:04:48]} 34. Nb5 {[%emt 0:00:37]} Rad8 {[%emt 0:03:18]} 35. Nc3 {[%emt 0:02:35]} Kc5 {[%emt 0:01:11]} 36. Nb5 {[%emt 0:02:16]} Kb4 {[%emt 0:01:22]} 37. Rb1 {[%emt 0:00:19]} Re7 {[%emt 0:01:02]} 38. Kf1 {[%emt 0:01:16]} Rf7 {[%emt 0:02:42]} 39. d4 {[%emt 0:02:04]} Rdf8 {[%emt 0:05:01]} 40. f4 {[%emt 0:01:16]} exf4 {[%emt 0:00:27]} 0-1

[Event "FIDE WCCC Girls-10 2024"]
[Site "Montesilvano"]
[Date "2024.11.20"]
[Round "6.24"]
[White "Bakhshi, Rana"]
[Black "Saltkhutsishvili, Sara"]
[Result "1-0"]
[Annotator "NA RC"]
[ECO "D35"]
[WhiteElo "1727"]
[BlackElo "1546"]
[PlyCount "83"]
[EventDate "2024.11.18"]
[EventType "swiss"]
[EventCountry "ITA"]
[SourceTitle "playchess.com"]
[Source "ChessBase"]
[SourceQuality "1"]
[TimeControl "5400+30"]

1. d4 {[%emt 0:00:12]} d5 {[%emt 0:02:33]} 2. c4 {[%emt 0:02:02]} e6 {[%emt 0:00:54]} 3. Nc3 {[%emt 0:02:08]} Be7 {[%emt 0:01:39]} 4. cxd5 {[%emt 0:01:15]} exd5 {[%emt 0:00:29]} 5. Bf4 {[%emt 0:01:11]} c6 {[%emt 0:04:33]} 6. e3 {[%emt 0:04:15]} Nf6 {[%emt 0:04:10]} 7. Bd3 {[%emt 0:00:38]} O-O {[%emt 0:05:12]} 8. Nge2 {[%emt 0:04:26]} Nbd7 {[%emt 0:09:32]} 9. O-O {[%emt 0:04:24]} Re8 {[%emt 0:07:53]} 10. f3 {[%emt 0:05:32]} Nh5 {[%emt 0:14:16]} 11. Bg3 {[%emt 0:04:10]} Bh4 {[%emt 0:04:58]} 12. e4 {[%emt 0:10:46]} Nb6 {[%emt 0:08:36]} 13. e5 {[%emt 0:03:44]} c5 {[%emt 0:11:34]} 14. Bc2 {[%emt 0:05:02]} Be7 {[%emt 0:08:57]} 15. f4 {[%emt 0:02:55]} Nxg3 {[%emt 0:03:12]} 16. Nxg3 {[%emt 0:00:55]} Nc4 {[%emt 0:01:42]} 17. Qd3 {[%emt 0:01:50]} g6 {[%emt 0:00:57]} 18. b3 {[%emt 0:01:16]} Na5 {[%emt 0:02:09]} 19. f5 {[%emt 0:00:40]} Nc6 {[%emt 0:01:21]} 20. fxg6 {[%emt 0:00:23]} fxg6 {[%emt 0:00:57]} 21. Nce2 {[%emt 0:12:27]} cxd4 {[%emt 0:03:27]} 22. e6 {[%emt 0:04:14]} Bxe6 {[%emt 0:01:33]} 23. Nf4 {[%emt 0:00:19]} Bf7 {[%emt 0:00:28]} 24. Qf3 {[%emt 0:04:10]} Ne5 {[%emt 0:00:46]} 25. Qf2 {[%emt 0:00:35]} d3 {[%emt 0:00:39]} 26. Nxd3 {[%emt 0:00:28]} Nxd3 {[%emt 0:00:31]} 27. Qxf7+ {[%emt 0:00:13]} Kh8 {[%emt 0:00:01]} 28. Bxd3 {[%emt 0:00:25]} Qd7 {[%emt 0:00:38]} 29. Nh5 {[%emt 0:01:31]} Bc5+ {[%emt 0:00:18]} 30. Kh1 {[%emt 0:00:23]} Qxf7 {[%emt 0:00:21]} 31. Rxf7 {[%emt 0:00:12]} gxh5 {[%emt 0:00:42]} 32. Rxh7+ {[%emt 0:00:21]} Kg8 {[%emt 0:00:02]} 33. Rxh5 {[%emt 0:01:10]} Rad8 {[%emt 0:00:35]} 34. Rf1 {[%emt 0:00:13]} Re3 {[%emt 0:00:50]} 35. Rg5+ {[%emt 0:01:05]} Kh8 {[%emt 0:00:08]} 36. Bb1 {[%emt 0:01:14]} Rf8 {[%emt 0:01:01]} 37. Bf5 {[%emt 0:01:10]} Re2 {[%emt 0:00:45]} 38. g3 {[%emt 0:01:40]} Rxa2 {[%emt 0:00:29]} 39. Rf4 {[%emt 0:00:40]} Ra1+ {[%emt 0:00:39]} 40. Kg2 {[%emt 0:00:09]} Ra2+ {[%emt 0:00:29]} 41. Kh3 {[%emt 0:00:16]} Rxf5 {[%emt 0:00:26]} 42. Rh4# {[%emt 0:00:17]} 1-0

[Event "FIDE WCCC Girls-10 2024"]
[Site "Montesilvano"]
[Date "2024.11.20"]
[Round "6.25"]
[White "Tu, Tiffany"]
[Black "Abibulla, Inzhu"]
[Result "1/2-1/2"]
[Annotator "NA RC"]
[ECO "B12"]
[WhiteElo "1687"]
[BlackElo "1499"]
[PlyCount "136"]
[EventDate "2024.11.18"]
[EventType "swiss"]
[EventCountry "ITA"]
[SourceTitle "playchess.com"]
[Source "ChessBase"]
[SourceQuality "1"]
[TimeControl "5400+30"]

1. e4 {[%emt 0:00:03]} c6 {[%emt 0:00:25]} 2. d4 {[%emt 0:00:11]} d5 {[%emt 0:00:08]} 3. f3 {[%emt 0:01:04]} dxe4 {[%emt 0:01:39]} 4. fxe4 {[%emt 0:00:10]} Nf6 {[%emt 0:02:53]} 5. Nc3 {[%emt 0:00:36]} Bg4 {[%emt 0:00:38]} 6. Be2 {[%emt 0:02:35]} Bxe2 {[%emt 0:00:42]} 7. Ngxe2 {[%emt 0:00:24]} e6 {[%emt 0:00:50]} 8. O-O {[%emt 0:02:10]} h6 {[%emt 0:02:15]} 9. Ng3 {[%emt 0:02:28]} Be7 {[%emt 0:02:30]} 10. Kh1 {[%emt 0:04:45]} Nbd7 {[%emt 0:03:25]} 11. Qf3 {[%emt 0:04:57]} e5 {[%emt 0:06:09]} 12. dxe5 {[%emt 0:15:18]} Nxe5 {[%emt 0:04:03]} 13. Qe2 {[%emt 0:14:02]} O-O {[%emt 0:01:29]} 14. Bf4 {[%emt 0:01:29]} Ng6 {[%emt 0:00:30]} 15. Be3 {[%emt 0:04:40]} Qc7 {[%emt 0:02:08]} 16. Nf5 {[%emt 0:02:09]} Kh7 {[%emt 0:03:50]} 17. Rad1 {[%emt 0:06:16]} b6 {[%emt 0:04:05]} 18. Qf3 {[%emt 0:04:47]} Rad8 {[%emt 0:13:04]} 19. Qh3 {[%emt 0:02:06]} Ng8 {[%emt 0:00:51]} 20. g4 {[%emt 0:11:48]} f6 {[%emt 0:01:14]} 21. Nd4 {[%emt 0:04:14]} Qc8 {[%emt 0:01:03]} 22. Nf5 {[%emt 0:01:03]} Rxd1 {[%emt 0:02:27]} 23. Rxd1 {[%emt 0:00:35]} Qc7 {[%emt 0:00:17]} 24. Qg2 {[%emt 0:05:46]} Rd8 {[%emt 0:02:38]} 25. Rxd8 {[%emt 0:01:28]} Qxd8 {[%emt 0:00:30]} 26. h3 {[%emt 0:01:36]} Bb4 {[%emt 0:02:32]} 27. Qd2 {[%emt 0:01:44]} Qc7 {[%emt 0:01:56]} 28. a3 {[%emt 0:00:34]} Be7 {[%emt 0:02:35]} 29. Ne2 {[%emt 0:02:39]} Qe5 {[%emt 0:01:49]} 30. Nc3 {[%emt 0:00:46]} Qc7 {[%emt 0:01:11]} 31. Qh2 {[%emt 0:01:04]} Qxh2+ {[%emt 0:00:56]} 32. Kxh2 {[%emt 0:00:03]} Ne5 {[%emt 0:00:23]} 33. Kg3 {[%emt 0:01:33]} Nc4 {[%emt 0:00:49]} 34. Bc1 {[%emt 0:00:05]} Bc5 {[%emt 0:00:38]} 35. b4 {[%emt 0:00:11]} Be7 {[%emt 0:00:26]} 36. Ne2 {[%emt 0:00:25]} g6 {[%emt 0:01:48]} 37. Nxe7 {[%emt 0:00:19]} Nxe7 {[%emt 0:00:09]} 38. Nd4 {[%emt 0:00:37]} Kg7 {[%emt 0:01:07]} 39. h4 {[%emt 0:00:36]} Kf7 {[%emt 0:00:41]} 40. a4 {[%emt 0:00:44]} a6 {[%emt 0:00:57]} 41. Bxh6 {[%emt 0:00:58]} Na3 {[%emt 0:01:14]} 42. Bc1 {[%emt 0:01:01]} Nc4 {[%emt 0:01:00]} 43. Kf4 {[%emt 0:00:22]} c5 {[%emt 0:00:54]} 44. bxc5 {[%emt 0:00:20]} bxc5 {[%emt 0:00:05]} 45. Nb3 {[%emt 0:00:09]} Nb6 {[%emt 0:01:00]} 46. Nxc5 {[%emt 0:00:09]} Nc6 {[%emt 0:00:23]} 47. Nxa6 {[%emt 0:00:43]} Nxa4 {[%emt 0:00:13]} 48. Bd2 {[%emt 0:00:38]} Nd4 {[%emt 0:00:43]} 49. Nb4 {[%emt 0:00:18]} Nb2 {[%emt 0:00:53]} 50. Ke3 {[%emt 0:00:49]} Ne6 {[%emt 0:00:25]} 51. Nd5 {[%emt 0:00:58]} Nc4+ {[%emt 0:00:32]} 52. Kd3 {[%emt 0:00:34]} Ne5+ {[%emt 0:00:11]} 53. Ke3 {[%emt 0:01:07]} Nxg4+ {[%emt 0:00:15]} 54. Kf3 {[%emt 0:00:28]} Ne5+ {[%emt 0:00:17]} 55. Kg3 {[%emt 0:00:30]} Nd4 {[%emt 0:00:55]} 56. Ne3 {[%emt 0:00:45]} Ke6 {[%emt 0:03:44]} 57. Kf2 {[%emt 0:00:29]} Ndf3 {[%emt 0:02:04]} 58. Bc3 {[%emt 0:00:21]} Nxh4 {[%emt 0:01:32]} 59. Bxe5 {[%emt 0:00:19]} Kxe5 {[%emt 0:00:05]} 60. Ng4+ {[%emt 0:00:12]} Kxe4 {[%emt 0:00:42]} 61. Nxf6+ {[%emt 0:00:03]} Kd4 {[%emt 0:00:26]} 62. Ke2 {[%emt 0:00:57]} Kc3 {[%emt 0:00:11]} 63. Kd1 {[%emt 0:00:04]} Nf3 {[%emt 0:00:30]} 64. Ne4+ {[%emt 0:00:51]} Kd4 {[%emt 0:00:15]} 65. Nd2 {[%emt 0:00:32]} Nxd2 {[%emt 0:00:39]} 66. Kxd2 {[%emt 0:00:03]} g5 {[%emt 0:00:08]} 67. Ke2 {[%emt 0:00:13]} g4 {[%emt 0:00:07]} 68. Kf2 {[%emt 0:00:06]} Ke5 {[%emt 0:00:42]} 1/2-1/2

[Event "FIDE WCCC Girls-10 2024"]
[Site "Montesilvano"]
[Date "2024.11.20"]
[Round "6.26"]
[White "Stoica, Melina-Theodora"]
[Black "Milojevic, Dunja"]
[Result "1-0"]
[Annotator "NA RC"]
[ECO "E16"]
[WhiteElo "1675"]
[BlackElo "1610"]
[PlyCount "123"]
[EventDate "2024.11.18"]
[EventType "swiss"]
[EventCountry "ITA"]
[SourceTitle "playchess.com"]
[Source "ChessBase"]
[SourceQuality "1"]
[TimeControl "5400+30"]

1. d4 {[%emt 0:00:02]} Nf6 {[%emt 0:00:06]} 2. Nf3 {[%emt 0:00:05]} e6 {[%emt 0:02:14]} 3. c4 {[%emt 0:03:22]} Bb4+ {[%emt 0:00:12]} 4. Nbd2 {[%emt 0:06:47]} b6 {[%emt 0:04:07]} 5. g3 {[%emt 0:07:42]} Bb7 {[%emt 0:00:11]} 6. Bg2 {[%emt 0:00:37]} O-O {[%emt 1:26:40]} 7. O-O {[%emt 0:07:40]} c5 {[%emt 0:00:00]} 8. e3 {[%emt 0:08:51]} Bxd2 {[%emt 0:00:00]} 9. Bxd2 {[%emt 0:01:10]} d6 {[%emt 0:00:00]} 10. Bc3 {[%emt 0:20:10]} Nbd7 {[%emt 0:00:00]} 11. b3 {[%emt 0:05:50]} Ne4 {[%emt 0:00:00]} 12. Bb2 {[%emt 0:04:05]} Qc7 {[%emt 0:00:00]} 13. Qc2 {[%emt 0:08:04]} Rac8 {[%emt 0:00:00]} 14. Rfd1 {[%emt 0:05:01]} Ndf6 {[%emt 0:00:00]} 15. Nd2 {[%emt 0:02:49]} Nxf2 {[%emt 0:00:00]} 16. Bxb7 {[%emt 0:03:20]} Qxb7 {[%emt 0:00:00]} 17. Kxf2 {[%emt 0:01:40]} Ng4+ {[%emt 0:00:00]} 18. Ke2 {[%emt 0:01:12]} Qg2+ {[%emt 0:00:00]} 19. Kd3 {[%emt 0:00:27]} cxd4 {[%emt 0:00:00]} 20. Bxd4 {[%emt 0:00:47]} d5 {[%emt 0:00:00]} 21. Rg1 {[%emt 0:01:01]} dxc4+ {[%emt 0:00:00]} 22. Nxc4 {[%emt 0:00:45]} Qd5 {[%emt 0:00:00]} 23. Qg2 {[%emt 0:00:41]} Qb5 {[%emt 0:00:00]} 24. h3 {[%emt 0:01:41]} Nh6 {[%emt 0:00:00]} 25. g4 {[%emt 0:00:53]} Rfd8 {[%emt 0:00:00]} 26. Ke2 {[%emt 0:01:00]} Qb4 {[%emt 0:00:00]} 27. Kf3 {[%emt 0:02:01]} b5 {[%emt 0:00:57]} 28. Qd2 {[%emt 0:00:26]} Qe7 {[%emt 0:01:50]} 29. g5 {[%emt 0:01:32]} Nf5 {[%emt 0:00:45]} 30. Ne5 {[%emt 0:00:48]} Qc7 {[%emt 0:00:54]} 31. Rac1 {[%emt 0:01:07]} Qb7+ {[%emt 0:02:12]} 32. Kf2 {[%emt 0:00:14]} Nd6 {[%emt 0:00:45]} 33. Ke2 {[%emt 0:01:07]} Ne4 {[%emt 0:00:37]} 34. Qb2 {[%emt 0:00:48]} Rxc1 {[%emt 0:00:38]} 35. Qxc1 {[%emt 0:00:38]} Nd6 {[%emt 0:01:07]} 36. Qc6 {[%emt 0:00:18]} Qb8 {[%emt 0:01:00]} 37. Nd7 {[%emt 0:01:09]} Qb7 {[%emt 0:01:31]} 38. Qxb7 {[%emt 0:00:06]} Nxb7 {[%emt 0:00:04]} 39. Nc5 {[%emt 0:00:27]} Nd6 {[%emt 0:00:39]} 40. Rc1 {[%emt 0:00:21]} Nf5 {[%emt 0:00:45]} 41. Nb7 {[%emt 0:01:11]} Nxd4+ {[%emt 0:00:31]} 42. exd4 {[%emt 0:00:05]} Rb8 {[%emt 0:00:06]} 43. Rc7 {[%emt 0:00:06]} g6 {[%emt 0:00:21]} 44. Nd6 {[%emt 0:00:15]} a6 {[%emt 0:00:46]} 45. Nxf7 {[%emt 0:00:11]} Rf8 {[%emt 0:00:38]} 46. Nd6 {[%emt 0:04:58]} Rf4 {[%emt 0:00:18]} 47. Rc8+ {[%emt 0:00:00]} Kg7 {[%emt 0:00:09]} 48. Rc7+ {[%emt 0:00:00]} Kg8 {[%emt 0:00:07]} 49. Ne8 {[%emt 0:00:00]} Rxd4 {[%emt 0:00:22]} 50. Nf6+ {[%emt 0:00:00]} Kf8 {[%emt 0:00:06]} 51. Nxh7+ {[%emt 0:00:00]} Ke8 {[%emt 0:00:23]} 52. Nf6+ {[%emt 0:00:00]} Kd8 {[%emt 0:00:08]} 53. Rg7 {[%emt 0:00:00]} Rh4 {[%emt 0:00:18]} 54. Rxg6 {[%emt 0:00:00]} Rxh3 {[%emt 0:00:08]} 55. Rh6 {[%emt 0:00:09]} Rg3 {[%emt 0:00:11]} 56. g6 {[%emt 0:00:31]} Ke7 {[%emt 0:00:13]} 57. Ne4 {[%emt 0:00:19]} Rg1 {[%emt 0:00:17]} 58. Rh7+ {[%emt 0:00:16]} Kf8 {[%emt 0:00:06]} 59. Rf7+ {[%emt 0:00:10]} Ke8 {[%emt 0:00:44]} 60. Nf6+ {[%emt 0:00:08]} Kd8 {[%emt 0:00:16]} 61. g7 {[%emt 0:00:07]} Rg2+ {[%emt 0:00:31]} 62. Kf3 {[%emt 0:00:16]} 1-0